bitfinex/quotes_SOLUSD_20250219
["timestamp","ask_amount","ask_price","bid_price","bid_amount"]
[1739988971899,0.063,170.86,170.85,60.87943153]
[1739988972305,0.063,170.96,170.87,1.0]
[1739988972510,0.063,170.96,170.91,26.69686345]
[1739988972706,0.063,170.96,170.91,81.72329498]
[1739988974222,0.063,170.96,170.91,114.27115843]
[1739988974801,0.063,170.96,170.91,60.87743153]
[1739988975001,0.063,170.96,170.91,87.57429498]
[1739988976623,0.063,170.96,170.91,81.72329498]
[1739988976805,26.75986345,170.96,170.91,55.02643153]
[1739988976996,26.69686345,170.95,170.91,55.02643153]
[1739988977198,26.75986345,170.94,170.89,55.02643153]
[1739988977419,26.69686345,170.93,170.89,55.02643153]
[1739988977624,26.69686345,170.91,170.86,55.02643153]
[1739988977806,26.69686345,170.89,170.86,55.02643153]
[1739988978012,26.69686345,170.88,170.83,55.02643153]
[1739988978326,26.69686345,170.84,170.83,55.02643153]
[1739988978497,26.69686345,170.84,170.77,26.69686345]
[1739988978701,18.64964886,170.87,170.77,98.42918408]
[1739988978702,43.40275255,170.83,170.77,98.42918408]
[1739988978893,43.40275255,170.84,170.77,98.42918408]
[1739988979126,43.40275255,170.87,170.81,43.40275255]
[1739988979427,43.40275255,170.86,170.81,55.02643153]
[1739988979827,43.40275255,170.82,170.81,55.02643153]
[1739988980126,43.40275255,170.82,170.75,92.943]
[1739988980127,18.64964886,170.81,170.75,0.063]
[1739988980312,43.40275255,170.78,170.75,0.063]
[1739988980899,43.40275255,170.76,170.75,0.063]
[1739988981096,67.13240141,170.76,170.75,0.063]
[1739988982816,72.98850141,170.76,170.75,0.063]
[1739988983838,48.48275255,170.76,170.75,0.063]
[1739988984329,54.33885255,170.76,170.75,0.063]
[1739988984639,72.98850141,170.76,170.75,0.063]
[1739988984924,48.48275255,170.76,170.75,0.063]
[1739988985536,5.8557,170.78,170.75,0.063]
[1739988985537,5.08,170.78,170.75,0.063]
[1739988985833,5.08,170.78,170.75,43.46575255]
[1739988986041,5.08,170.78,170.75,0.063]
[1739988986336,5.08,170.78,170.75,55.08943153]
[1739988986932,49.25695255,170.82,170.76,43.40275255]
[1739988987138,49.25695255,170.82,170.76,98.42918408]
[1739988987541,5.8542,170.82,170.76,98.42918408]
[1739988987727,5.8537,170.83,170.77,43.40275255]
[1739988988040,54.33615255,170.84,170.77,43.40275255]
[1739988988245,43.40275255,170.82,170.76,98.42918408]
[1739988989439,49.25685255,170.82,170.76,98.42918408]
[1739988989941,43.40275255,170.79,170.76,55.02643153]
[1739988990243,43.40275255,170.78,170.76,55.02643153]
[1739988990458,43.40275255,170.78,170.75,0.063]
[1739988990751,43.40275255,170.81,170.75,43.46575255]
[1739988990925,43.40275255,170.82,170.76,43.40275255]
[1739988991121,43.40275255,170.82,170.76,98.42918408]
[1739988991725,43.40275255,170.81,170.76,55.02643153]
[1739988992238,43.40275255,170.8,170.76,55.02643153]
[1739988992624,43.40275255,170.79,170.76,55.02643153]
[1739988992823,43.40275255,170.78,170.76,55.02643153]
[1739988993025,43.40275255,170.78,170.75,0.063]
[1739988993217,43.40275255,170.79,170.75,0.063]
[1739988994036,43.40275255,170.81,170.75,43.46575255]
[1739988994343,43.40275255,170.79,170.75,55.08943153]
[1739988994953,43.40275255,170.78,170.75,55.08943153]
[1739988995245,40.13894886,170.82,170.75,55.08943153]
[1739988995246,43.40275255,170.79,170.75,55.08943153]
[1739988995826,5.8554,170.78,170.75,55.08943153]
[1739988996146,49.25815255,170.78,170.75,55.08943153]
[1739988997249,5.8541,170.82,170.75,55.08943153]
[1739988997438,5.8541,170.82,170.76,43.40275255]
[1739988997617,49.25685255,170.82,170.76,43.40275255]
[1739988997945,58.06515255,170.86,170.8,43.40275255]
[1739988998151,58.06515255,170.86,170.8,98.42918408]
[1739988998336,49.28545255,170.86,170.8,98.42918408]
[1739988998737,32.5826799,170.86,170.8,81.72641143]
[1739988999127,26.6999799,170.85,170.8,55.02643153]
[1739988999853,32.5826799,170.86,170.8,81.72641143]
[1739989000023,5.8827,170.86,170.8,81.72641143]
[1739989000230,5.8827,170.86,170.81,26.6999799]
[1739989000742,5.8827,170.86,170.81,81.72641143]
[1739989001144,0.03,170.86,170.81,81.72641143]
[1739989001656,0.03,170.86,170.83,26.6999799]
[1739989002938,0.03,170.86,170.84,26.6999799]
[1739989003136,0.03,170.86,170.84,81.72641143]
[1739989004168,0.03,170.86,170.85,26.6999799]
[1739989004335,0.03,170.86,170.85,81.72641143]
[1739989013075,0.03,170.86,170.85,55.02643153]
[1739989014776,5.8827,170.86,170.85,55.02643153]
[1739989015774,32.5826799,170.86,170.85,55.02643153]
[1739989017142,32.5826799,170.86,170.85,34.65710168]
[1739989017348,47.2144799,170.86,170.8,34.65710168]
[1739989017679,32.5826799,170.86,170.81,26.6999799]
[1739989017978,32.5826799,170.86,170.8,61.35708158]
[1739989019555,26.6999799,170.85,170.8,34.65710168]
[1739989019954,5.8534,170.84,170.8,34.65710168]
[1739989020473,26.6999799,170.85,170.8,34.65710168]
[1739989020677,32.5530799,170.85,170.8,34.65710168]
[1739989020852,32.5530799,170.85,170.8,34.72010168]
[1739989021577,26.6999799,170.84,170.8,34.72010168]
[1739989021870,32.5530799,170.85,170.8,34.72010168]
[1739989023055,26.6999799,170.83,170.8,0.063]
[1739989024050,5.8541,170.82,170.8,0.063]
[1739989025176,5.8538,170.83,170.8,0.063]
[1739989026180,5.8534,170.84,170.8,0.063]
[1739989026794,26.6999799,170.83,170.8,0.063]
[1739989027881,32.5533799,170.84,170.8,0.063]
[1739989028977,26.6999799,170.81,170.8,0.063]
[1739989029574,26.6999799,170.82,170.8,0.063]
[1739989030385,26.6999799,170.81,170.8,0.063]
[1739989030772,16.69774697,170.81,170.8,0.063]
[1739989031092,22.55214697,170.81,170.8,0.063]
[1739989031293,16.69774697,170.81,170.8,0.063]
[1739989032598,22.55214697,170.81,170.8,0.063]
[1739989037090,41.20179583,170.81,170.8,0.063]
[1739989037307,18.64964886,170.8,170.77,34.65710168]
[1739989037473,22.55314697,170.78,170.77,34.65710168]
[1739989037671,22.55314697,170.78,170.76,0.063]
[1739989038496,16.69774697,170.77,170.76,0.063]
[1739989039498,35.34739583,170.77,170.76,0.063]
[1739989039706,41.20319583,170.77,170.76,0.063]
[1739989039900,46.00319583,170.77,170.76,0.063]
[1739989040201,46.00319583,170.77,170.76,0.0001]
[1739989040581,21.49774697,170.77,170.76,0.0001]
[1739989040778,5.8552,170.79,170.76,0.0001]
[1739989041385,4.8,170.82,170.78,16.69774697]
[1739989041690,16.69774697,170.8,170.78,34.65710168]
[1739989041872,16.69774697,170.8,170.76,0.0001]
[1739989041873,16.69774697,170.79,170.76,0.0001]
[1739989042076,16.69774697,170.77,170.76,0.0001]
[1739989042278,35.34739583,170.77,170.76,0.0001]
[1739989043789,41.20319583,170.77,170.76,0.0001]
[1739989044574,42.20319583,170.77,170.76,0.0001]
[1739989045403,143.1554,170.79,170.76,0.0001]
[1739989045581,16.69774697,170.77,170.76,0.0001]
[1739989046178,16.69774697,170.78,170.77,1.5]
[1739989046399,5.8545,170.81,170.77,1.5]
[1739989046400,16.69774697,170.79,170.77,1.5]
[1739989046703,5.8845,170.81,170.77,36.15710168]
[1739989046704,16.72774697,170.81,170.77,36.15710168]
[1739989047093,16.69774697,170.8,170.77,36.15710168]
[1739989047402,16.69774697,170.79,170.77,36.15710168]
[1739989047909,16.69774697,170.8,170.77,36.15710168]
[1739989048411,16.69774697,170.78,170.77,1.5]
[1739989048705,40.18739583,170.78,170.77,1.5]
[1739989049006,41.18739583,170.78,170.77,1.5]
[1739989049202,40.18739583,170.78,170.77,1.5]
[1739989049784,46.04279583,170.78,170.77,1.5]
[1739989051136,44.54279583,170.78,170.76,0.0001]
[1739989051310,16.69774697,170.77,170.76,0.0001]
[1739989051810,5.8565,170.75,170.73,0.03]
[1739989051989,35.34739583,170.74,170.73,0.03]
[1739989052797,16.69774697,170.74,170.73,0.03]
[1739989052987,16.69774697,170.75,170.73,0.03]
[1739989053188,16.69774697,170.76,170.73,0.03]
[1739989053922,16.69774697,170.77,170.73,34.68710168]
[1739989054119,16.69774697,170.8,170.74,16.69774697]
[1739989054302,16.72774697,170.81,170.75,16.69774697]
[1739989054594,16.69774697,170.8,170.74,16.69774697]
[1739989055006,16.72774697,170.81,170.75,16.69774697]
[1739989055206,16.72774697,170.81,170.76,1.5599]
[1739989055386,16.72774697,170.81,170.76,36.21700168]
[1739989056588,16.69774697,170.79,170.76,36.21700168]
[1739989057026,16.69774697,170.79,170.76,34.65710168]
[1739989058514,16.69774697,170.77,170.76,34.65710168]
[1739989058813,16.69774697,170.77,170.73,0.03]
[1739989059019,16.69774697,170.74,170.73,0.03]
[1739989059514,16.69774697,170.78,170.73,5.8871]
[1739989059941,16.69774697,170.79,170.73,22.58484697]
[1739989060104,16.69774697,170.78,170.73,5.8871]
[1739989060510,16.69774697,170.79,170.73,57.24194865]
[1739989061920,16.69774697,170.78,170.73,40.54420168]
[1739989062833,26.72013037,170.78,170.73,40.54420168]
[1739989063033,26.72013037,170.76,170.73,34.68710168]
[1739989063207,26.72013037,170.74,170.73,34.68710168]
[1739989063527,26.72013037,170.75,170.73,34.68710168]
[1739989063919,26.72013037,170.74,170.73,34.68710168]
[1739989064228,26.72013037,170.75,170.73,34.68710168]
[1739989064415,31.52013037,170.76,170.73,34.68710168]
[1739989064725,4.8,170.76,170.73,34.68710168]
[1739989065226,26.72013037,170.75,170.73,34.68710168]
[1739989065431,26.72013037,170.74,170.73,34.68710168]
[1739989066709,26.72013037,170.76,170.73,34.68710168]
[1739989066909,26.72013037,170.77,170.73,34.68710168]
[1739989067918,26.72013037,170.76,170.73,34.68710168]
[1739989068943,26.72013037,170.74,170.73,34.68710168]
[1739989069235,26.72013037,170.74,170.73,0.03]
[1739989071149,32.57693037,170.74,170.73,0.03]
[1739989071438,31.50013037,170.75,170.73,0.03]
[1739989071816,26.72013037,170.75,170.73,0.03]
[1739989072033,32.57673037,170.75,170.73,0.03]
[1739989072234,26.72013037,170.74,170.73,0.03]
[1739989074033,32.57693037,170.74,170.73,0.03]
[1739989074528,34.57693037,170.74,170.73,0.03]
[1739989077238,1.97,170.73,170.68,36.29440168]
[1739989077444,34.54753037,170.73,170.68,36.29440168]
[1739989079249,1.97,170.73,170.68,68.87333205]
[1739989079436,7.8272,170.73,170.68,63.01453205]
[1739989080052,7.8272,170.73,170.68,61.01453205]
[1739989080753,34.54733037,170.73,170.68,61.01453205]
[1739989080947,34.54733037,170.73,170.68,34.29440168]
[1739989081262,26.72013037,170.72,170.68,34.29440168]
[1739989081631,32.57793037,170.72,170.68,34.29440168]
[1739989082038,26.72013037,170.71,170.68,34.29440168]
[1739989082236,26.72013037,170.69,170.68,34.29440168]
[1739989082555,26.72013037,170.7,170.64,61.01453205]
[1739989082949,26.72013037,170.7,170.64,66.87473205]
[1739989084045,26.72013037,170.7,170.68,0.03]
[1739989084444,26.72013037,170.71,170.68,0.03]
[1739989084648,16.71454855,170.71,170.68,0.03]
[1739989085356,16.71454855,170.7,170.68,0.03]
[1739989086554,35.36419741,170.69,170.68,0.03]
[1739989087433,16.71454855,170.69,170.68,0.03]
[1739989090860,16.71454855,170.7,170.68,0.03]
[1739989093772,16.71454855,170.69,170.68,0.03]
[1739989095266,23.38454855,170.73,170.68,0.03]
[1739989095267,16.71454855,170.7,170.68,0.03]
[1739989097154,22.57284855,170.7,170.68,0.03]
[1739989098257,16.71454855,170.69,170.68,0.03]
[1739989099377,22.57304855,170.69,170.68,0.03]
[1739989099779,16.71454855,170.69,170.68,0.03]
[1739989100063,16.71454855,170.71,170.68,0.03]
[1739989100853,16.71454855,170.7,170.68,0.03]
[1739989101178,16.71454855,170.69,170.68,0.03]
[1739989101541,22.57304855,170.69,170.68,0.03]
[1739989103077,41.22269741,170.69,170.68,0.03]
[1739989103283,24.50814886,170.69,170.68,0.03]
[1739989103457,41.23007315,170.69,170.68,0.03]
[1739989103774,22.58042429,170.69,170.68,0.03]
[1739989104560,41.23007315,170.69,170.68,0.03]
[1739989105149,41.23007315,170.69,170.62,0.063]
[1739989105344,16.72192429,170.64,170.62,0.063]
[1739989105572,16.72192429,170.65,170.62,0.063]
[1739989106759,10.70513168,170.65,170.62,0.063]
[1739989107083,5.8592,170.67,170.62,0.063]
[1739989107253,10.70513168,170.64,170.62,0.063]
[1739989107573,10.70513168,170.65,170.62,0.063]
[1739989107954,9.05284883,170.71,170.62,10.76813168]
[1739989108280,9.05284883,170.71,170.67,10.70513168]
[1739989108489,0.063,170.7,170.68,10.692607]
[1739989108665,0.063,170.7,170.69,10.692607]
[1739989109384,0.063,170.72,170.7,6.281]
[1739989109554,0.063,170.72,170.71,16.550407]
[1739989109755,0.063,170.72,170.71,50.84480868]
[1739989110404,0.063,170.72,170.71,40.15220168]
[1739989110691,0.063,170.72,170.71,34.29440168]
[1739989114358,16.77088455,170.72,170.66,34.29440168]
[1739989114578,16.70788455,170.69,170.66,34.29440168]
[1739989117302,16.70788455,170.67,170.63,34.29440168]
[1739989117466,16.70788455,170.64,170.62,0.063]
[1739989117986,16.70788455,170.65,170.62,0.063]
[1739989119190,22.56788455,170.65,170.62,0.063]
[1739989120084,16.70788455,170.64,170.62,0.063]
[1739989120310,16.70788455,170.63,170.59,32.38740168]
[1739989120590,5.86,170.65,170.59,32.38740168]
[1739989120591,16.70788455,170.6,170.59,32.38740168]
[1739989120808,16.70788455,170.61,170.59,32.38740168]
[1739989121289,16.70788455,170.6,170.59,32.38740168]
[1739989121668,16.70788455,170.61,170.59,32.38740168]
[1739989123196,22.56938455,170.61,170.59,32.38740168]
[1739989124610,16.70788455,170.61,170.58,0.063]
[1739989124786,2.0,170.59,170.58,0.063]
[1739989127095,22.56938455,170.61,170.57,30.51340168]
[1739989128296,16.70788455,170.58,170.55,0.12]
[1739989128595,18.64964886,170.55,170.48,28.63340168]
[1739989128801,16.70788455,170.51,170.48,28.63340168]
[1739989129921,16.70788455,170.5,170.48,28.63340168]
[1739989130499,16.70788455,170.49,170.48,28.63340168]
[1739989131011,16.70788455,170.49,170.44,30.29190168]
[1739989131380,16.70788455,170.48,170.44,30.29190168]
[1739989131872,16.70788455,170.49,170.44,30.29190168]
[1739989132089,16.70788455,170.48,170.44,28.63340168]
[1739989134499,16.6231473,170.48,170.44,28.63340168]
[1739989134885,16.70788455,170.47,170.44,28.63340168]
[1739989136202,16.70788455,170.46,170.44,28.63340168]
[1739989136399,16.70788455,170.47,170.44,28.63340168]
[1739989138489,17.93788455,170.47,170.44,28.63340168]
[1739989140002,17.93788455,170.47,170.41,121.63340168]
[1739989140208,16.70788455,170.46,170.41,127.50150168]
[1739989141214,17.93788455,170.47,170.41,127.50150168]
[1739989141905,1.23,170.47,170.41,158.87988623]
[1739989142208,1.23,170.47,170.45,16.70788455]
[1739989142510,1.23,170.47,170.46,16.70788455]
[1739989142877,16.70788455,170.58,170.52,16.70788455]
[1739989143384,16.70788455,170.55,170.49,16.70788455]
[1739989143687,16.70788455,170.57,170.51,16.70788455]
[1739989144095,16.70788455,170.57,170.52,5.8644]
[1739989144901,16.70788455,170.58,170.52,22.57228455]
[1739989145288,16.70788455,170.58,170.52,51.20568623]
[1739989146309,89.3575,170.64,170.56,16.70788455]
[1739989146603,16.70788455,170.63,170.57,16.70788455]
[1739989146804,16.70788455,170.65,170.59,16.70788455]
[1739989147002,16.70788455,170.66,170.6,16.70788455]
[1739989147195,16.70788455,170.66,170.6,45.34128623]
[1739989147983,16.70788455,170.67,170.61,16.70788455]
[1739989148313,4.64,170.7,170.62,22.56848455]
[1739989148314,16.70788455,170.68,170.62,22.56848455]
[1739989148481,16.70788455,170.68,170.62,16.70788455]
[1739989148677,16.70788455,170.68,170.62,22.56868455]
[1739989148911,16.70788455,170.68,170.62,16.70788455]
[1739989150611,16.70788455,170.67,170.61,51.20248623]
[1739989151511,18.70788455,170.67,170.61,51.20248623]
[1739989152411,2.0,170.67,170.62,16.70788455]
[1739989152591,2.0,170.67,170.63,16.70788455]
[1739989152784,2.0,170.67,170.61,28.63340168]
[1739989152785,16.70788455,170.65,170.61,28.63340168]
[1739989153010,16.70788455,170.65,170.61,34.49470168]
[1739989153222,2.0,170.67,170.61,34.49470168]
[1739989153223,2.0,170.67,170.61,51.20258623]
[1739989154011,16.70788455,170.66,170.61,34.49470168]
[1739989155309,2.0,170.67,170.61,28.63340168]
[1739989155310,16.70788455,170.62,170.61,28.63340168]
[1739989155701,16.70788455,170.63,170.61,28.63340168]
[1739989156004,16.70788455,170.62,170.57,28.63340168]
[1739989156185,16.70788455,170.6,170.57,28.63340168]
[1739989156382,16.70788455,170.58,170.57,28.63340168]
[1739989156585,16.70788455,170.58,170.54,121.69340168]
[1739989156802,18.64964886,170.62,170.54,121.69340168]
[1739989156803,16.70788455,170.55,170.54,121.69340168]
[1739989157015,16.70788455,170.59,170.54,121.69340168]
[1739989157190,16.70788455,170.6,170.55,16.70788455]
[1739989157892,16.70788455,170.61,170.55,45.34128623]
[1739989158107,16.70788455,170.61,170.56,5.863]
[1739989159910,16.70788455,170.6,170.55,34.49670168]
[1739989160217,16.70788455,170.64,170.55,28.63340168]
[1739989160218,16.70788455,170.56,170.55,28.63340168]
[1739989160700,16.70788455,170.57,170.55,28.63340168]
[1739989161310,16.70788455,170.58,170.55,34.49670168]
[1739989161506,16.70788455,170.57,170.55,28.63340168]
[1739989163098,116.30114886,170.63,170.55,28.63340168]
[1739989163099,16.70788455,170.56,170.55,28.63340168]
[1739989165905,5.8621,170.59,170.55,28.63340168]
[1739989166101,16.70788455,170.57,170.53,5.8638]
[1739989166920,16.70788455,170.58,170.52,22.57228455]
[1739989167513,16.70788455,170.56,170.51,28.63340168]
[1739989167715,16.70788455,170.57,170.51,51.20588623]
[1739989168124,16.70788455,170.56,170.51,28.63340168]
[1739989168325,16.70788455,170.55,170.51,28.63340168]
[1739989168525,16.70788455,170.53,170.51,28.63340168]
[1739989168741,16.70788455,170.52,170.48,28.63340168]
[1739989168911,4.62,170.57,170.48,28.63340168]
[1739989168912,16.70788455,170.51,170.48,28.63340168]
[1739989169625,16.70788455,170.53,170.48,34.49910168]
[1739989169811,16.70788455,170.55,170.49,16.70788455]
[1739989170920,21.32788455,170.57,170.51,16.70788455]
[1739989171127,22.56918455,170.61,170.55,16.70788455]
[1739989171312,16.70788455,170.6,170.54,16.70788455]
[1739989171506,16.70788455,170.59,170.53,16.70788455]
[1739989172709,16.70788455,170.58,170.52,16.70788455]
[1739989172905,16.70788455,170.55,170.51,28.63340168]
[1739989173328,16.70788455,170.54,170.51,28.63340168]
[1739989173699,16.70788455,170.53,170.51,28.63340168]
[1739989175227,16.70788455,170.53,170.49,28.63340168]
[1739989175407,16.70788455,170.52,170.49,28.63340168]
[1739989177105,16.6210248,170.52,170.49,28.63340168]
[1739989177527,16.70788455,170.53,170.49,28.63340168]
[1739989177727,16.70788455,170.53,170.47,51.23708623]
[1739989178231,16.70788455,170.52,170.47,28.66340168]
[1739989178429,16.70788455,170.5,170.47,28.66340168]
[1739989179526,16.70788455,170.51,170.47,28.66340168]
[1739989179734,16.70788455,170.52,170.47,28.66340168]
[1739989180731,1.5271,170.56,170.48,16.70788455]
[1739989180732,16.70788455,170.54,170.48,16.70788455]
[1739989180932,16.70788455,170.54,170.47,34.52950168]
[1739989181114,16.70788455,170.53,170.47,51.23738623]
[1739989181824,83.0,170.57,170.49,16.70788455]
[1739989182026,16.70788455,170.56,170.5,16.70788455]
[1739989183040,5.8632,170.56,170.5,16.70788455]
[1739989183332,22.57108455,170.56,170.5,16.70788455]
[1739989183636,16.70788455,170.55,170.49,45.34128623]
[1739989183844,16.70788455,170.55,170.49,28.63340168]
[1739989184219,5.8632,170.56,170.49,45.34128623]
[1739989184414,16.70788455,170.55,170.49,28.63340168]
[1739989184623,16.70788455,170.52,170.49,28.63340168]
[1739989186627,16.70788455,170.51,170.47,28.66340168]
[1739989186837,16.70788455,170.5,170.47,28.66340168]
[1739989188146,16.70788455,170.51,170.47,28.66340168]
[1739989189319,5.8643,170.53,170.47,28.66340168]
[1739989189523,16.70788455,170.55,170.49,16.70788455]
[1739989189816,16.70788455,170.56,170.5,16.70788455]
[1739989190027,22.57028455,170.58,170.51,16.70788455]
[1739989190343,22.57028455,170.58,170.52,16.70788455]
[1739989190527,16.70788455,170.58,170.52,16.70788455]
[1739989191321,31.69565552,170.61,170.54,16.70788455]
[1739989191631,16.77088455,170.61,170.55,16.70788455]
[1739989191839,16.77088455,170.61,170.55,45.34128623]
[1739989192351,16.70788455,170.6,170.55,28.63340168]
[1739989192643,16.77088455,170.61,170.55,45.34128623]
[1739989192852,9.06347097,170.65,170.57,16.70788455]
[1739989193023,1e-08,170.65,170.64,79.31731796]
[1739989193223,20.18994194,170.67,170.65,20.64964886]
[1739989193432,36.25388388,170.68,170.67,1.0]
[1739989193638,36.25388388,170.7,170.68,1.0]
[1739989193835,36.25388388,170.7,170.69,16.70788455]
[1739989194048,54.44382582,170.72,170.7,2.0]
[1739989194239,54.44382582,170.72,170.71,17.70788455]
[1739989195335,0.063,170.72,170.71,17.70788455]
[1739989195730,0.063,170.72,170.71,23.56568455]
[1739989196747,0.063,170.72,170.71,33.57018133]
[1739989197250,0.063,170.72,170.71,5.8578]
[1739989197427,0.063,170.72,170.69,127.55180168]
[1739989197844,0.063,170.72,170.71,26.71238133]
[1739989198845,0.063,170.72,170.71,55.34578301]
[1739989199935,0.063,170.72,170.71,61.20358301]
[1739989200132,0.063,170.72,170.71,64.16474508]
[1739989200748,0.0001,170.72,170.71,64.16474508]
[1739989200952,0.0001,170.72,170.71,34.49120168]
[1739989201533,0.0001,170.72,170.71,61.20358301]
[1739989204558,0.063,170.77,170.71,61.20358301]
[1739989204853,0.063,170.77,170.74,5.8568]
[1739989206458,26.71238133,170.76,170.71,28.63340168]
[1739989206642,26.71238133,170.74,170.71,28.63340168]
[1739989206843,26.71238133,170.76,170.71,34.49120168]
[1739989207453,26.71238133,170.75,170.71,34.49120168]
[1739989207660,26.71238133,170.74,170.71,28.63340168]
[1739989207862,26.71238133,170.73,170.69,93.06]
[1739989208158,26.71238133,170.72,170.69,93.06]
[1739989208361,26.71238133,170.73,170.69,93.06]
[1739989208553,26.71238133,170.74,170.69,98.9185]
[1739989208796,11.0616,170.76,170.69,93.06]
[1739989208797,26.71238133,170.73,170.69,93.06]
[1739989209257,26.71238133,170.74,170.69,98.9185]
[1739989209556,26.71238133,170.73,170.69,93.06]
[1739989209937,26.71238133,170.72,170.69,93.06]
[1739989210338,26.71238133,170.7,170.66,28.63340168]
[1739989210554,26.71238133,170.69,170.64,5.8602]
[1739989210759,26.71238133,170.69,170.64,34.49360168]
[1739989211958,26.71238133,170.7,170.64,34.49360168]
[1739989212133,7.566,170.73,170.65,26.71238133]
[1739989212134,26.71238133,170.71,170.65,26.71238133]
[1739989212637,26.71238133,170.7,170.64,61.20598301]
[1739989213034,26.71238133,170.72,170.66,26.71238133]
[1739989213249,26.77538133,170.73,170.67,26.71238133]
[1739989213440,26.77538133,170.73,170.66,26.71238133]
[1739989213637,26.71238133,170.71,170.65,26.71238133]
[1739989213842,26.71238133,170.69,170.64,34.49360168]
[1739989215063,26.71238133,170.7,170.64,61.20598301]
[1739989215241,0.063,170.73,170.64,61.20598301]
[1739989215242,26.71238133,170.72,170.66,26.71238133]
[1739989215436,26.77538133,170.73,170.67,26.71238133]
[1739989215957,26.77538133,170.73,170.64,49.14430168]
[1739989216168,26.71238133,170.72,170.66,26.71238133]
[1739989216968,26.71238133,170.71,170.65,26.71238133]
[1739989217261,26.71238133,170.71,170.64,34.49360168]
[1739989217262,26.71238133,170.68,170.64,28.63340168]
[1739989217475,26.71238133,170.65,170.61,65.29031142]
[1739989217632,26.71238133,170.64,170.61,65.29031142]
[1739989217838,83.0,170.67,170.61,69.23049107]
[1739989218062,26.71238133,170.71,170.65,26.71238133]
[1739989218457,26.71238133,170.7,170.64,26.71238133]
[1739989218775,16.71605877,170.7,170.64,16.71605877]
[1739989218966,16.71605877,170.7,170.63,16.71605877]
[1739989219163,16.71605877,170.66,170.61,33.25340168]
[1739989219541,16.71605877,170.67,170.61,55.83066045]
[1739989219740,16.71605877,170.68,170.62,16.71605877]
[1739989220563,16.71605877,170.67,170.61,51.21066045]
[1739989221339,16.71605877,170.63,170.59,98.8218]
[1739989221851,16.71605877,170.64,170.59,98.8218]
[1739989222053,4.64,170.65,170.59,98.8218]
[1739989222054,4.64,170.65,170.6,16.71605877]
[1739989222441,4.64,170.65,170.59,115.53785877]
[1739989222953,4.64,170.65,170.62,0.03]
[1739989224041,16.71605877,170.65,170.62,0.03]
[1739989224885,16.71605877,170.63,170.62,0.03]
[1739989225368,22.57665877,170.63,170.62,0.03]
[1739989226275,16.71605877,170.63,170.62,0.03]
[1739989226654,5.86,170.65,170.62,0.03]
[1739989226655,16.71605877,170.64,170.62,0.03]
[1739989226856,83.0,170.66,170.62,0.03]
[1739989227182,16.71605877,170.65,170.62,0.03]
[1739989229066,16.71605877,170.63,170.62,0.03]
[1739989229380,16.71605877,170.66,170.62,0.03]
[1739989229681,16.71605877,170.67,170.62,0.03]
[1739989229855,16.71605877,170.66,170.62,0.03]
[1739989230557,16.71605877,170.67,170.62,0.03]
[1739989231865,16.71605877,170.66,170.62,0.03]
[1739989234176,21.33605877,170.69,170.62,45.37946045]
[1739989234378,96.5407,170.72,170.64,16.71605877]
[1739989234379,16.71605877,170.7,170.64,16.71605877]
[1739989234570,16.77905877,170.72,170.65,16.71605877]
[1739989234763,16.71605877,170.71,170.65,16.71605877]
[1739989235660,16.71605877,170.7,170.66,5.8596]
[1739989237278,5.9206,170.72,170.65,5.8599]
[1739989237485,16.71605877,170.7,170.65,5.8599]
[1739989238557,16.71605877,170.69,170.65,5.8599]
[1739989239574,16.71605877,170.7,170.65,5.8599]
[1739989239977,16.71605877,170.69,170.65,5.8599]
[1739989240181,16.71605877,170.7,170.65,5.8599]
[1739989242372,16.71605877,170.71,170.65,34.49330168]
[1739989242562,0.063,170.72,170.68,16.71605877]
[1739989242767,0.063,170.72,170.68,45.34946045]
[1739989242994,0.063,170.72,170.68,28.63340168]
[1739989244576,0.063,170.72,170.68,34.49190168]
[1739989244987,0.063,170.72,170.69,16.71605877]
[1739989245197,0.063,170.72,170.7,16.71605877]
[1739989245381,0.063,170.72,170.7,45.34946045]
[1739989245686,0.063,170.72,170.7,28.63340168]
[1739989245892,16.71605877,170.71,170.7,28.63340168]
[1739989246675,16.71605877,170.71,170.7,34.49160168]
[1739989246873,16.77905877,170.72,170.7,34.49160168]
[1739989247177,0.063,170.72,170.7,34.49160168]
[1739989248396,0.063,170.72,170.7,57.71426045]
[1739989248583,0.063,170.77,170.71,18.27725877]
[1739989248895,0.063,170.77,170.75,16.71605877]
[1739989249091,0.063,170.77,170.76,16.71605877]